Cogmind - Beta 13 *** ADVENTURER MODE // 2024.05.05 @ 11:52:21 Player: AnotherZach Result: Destroyed by D-53 Grenadier with Mini Grenade Launcher Performance ------------- Evolutions (0) 0 Regions Visited (2) 400 Robots Destroyed (35) 175 Value Destroyed (617) 617 Prototype IDs (0) 0 Alien Tech Used (0) 0 Bonus (0) 0 TOTAL SCORE: 1192 Bonus ------- None Cogmind --------- Core Integrity 0/250 Matter 257/300 Energy 74/125 System Corruption 0% Temperature Cool (0) Movement Rolling (95) Ox1 Location -10/Mines Parts ------- > --- POWER (1) -------- Light Ion Engine > --- PROPULSION (2) --- Wheel > --- UTILITY (2) ------ Medium Storage Unit > --- WEAPON (2) ------- Assault Rifle Battle Cannon > --- INVENTORY (10) --- High-capacity Matter Pod (200) Signal Interpreter Seismic Detector Beam Cannon Beam Cannon Assault Rifle Peak State ------------ > --- POWER ------------ Light Nuclear Core > --- PROPULSION ------- Wheel Compact Wheel > --- UTILITY ---------- Improved Heat Sink Medium Storage Unit > --- WEAPON ----------- Beamcaster Beam Cannon > --- INVENTORY -------- Light Ion Engine Wheel High-capacity Matter Pod Signal Interpreter Seismic Detector Beam Cannon Beam Cannon Assault Rifle Assault Rifle Mining Laser [Rating: 16] Favorites ----------- Power Ion Engine Engine Ion Engine Power Core Light Nuclear Core Propulsion Wheel Wheel Wheel Utility Small Storage Unit Device Seismic Detector Storage Small Storage Unit Weapon Assault Rifle Energy Gun Beamcaster Energy Cannon Beam Cannon Ballistic Gun Assault Rifle Ballistic Cannon Battle Cannon Special Weapon Mining Laser Build | -11 -10 -10 ------- Run | Yrd Mat Min Slots Evolved . | . . . Power . | . . . Propulsion . | . . . Utility . | . . . Weapon . | . . . Parts Attached 31 | 7 16 8 Power 5 | 1 3 1 Engine 2 | 1 . 1 Core 3 | . 3 . Reactor . | . . . Propulsion 8 | 2 4 2 Treads . | . . . Leg . | . . . Wheel 8 | 2 4 2 Hover . | . . . Flight . | . . . Utility 6 | 2 3 1 Device 3 | 1 1 1 Storage 3 | 1 2 . Processor . | . . . Hackware . | . . . Protection . | . . . Artifact . | . . . Weapon 12 | 2 6 4 Energy Gun 1 | . . 1 Energy Cannon 3 | . 3 . Ballistic Gun 6 | 2 3 1 Ballistic Cannon 1 | . . 1 Launcher . | . . . Special Weapon 1 | . . 1 Impact Weapon . | . . . Slashing Weapon . | . . . Piercing Weapon . | . . . Special Melee Weapon . | . . . Unidentified Prototypes . | . . . Parts Lost 9 | . 1 8 Power 1 | . . 1 Propulsion 4 | . 1 3 Utility 1 | . . 1 Weapon 3 | . . 3 Highest Loss Streak 7 | . 1 7 To Critical Strikes . | . . . Average Slot Usage (%) 96 | . 97 94 Engine 6 | . 7 . Core 5 | . 4 12 Wheel 27 | . 27 26 Device 13 | . 14 12 Storage 14 | . 14 14 Energy Cannon 9 | . 5 24 Ballistic Gun 17 | . 22 . Naked Turns . | . . . Heaviest Build 24 | 14 22 24 Greatest Support 26 | 20 26 26 Greatest Overweight (x) 1 | 1 1 1 Average Overweight (x) . | . . . Largest Inventory Capacity 10 | 8 10 10 Average Capacity 8 | 7 8 10 Most Carried 10 | 7 10 10 Average Carried 7 | 4 7 9 Final Capacity 10 | 8 10 10 Final Carried 10 | 7 10 6 Class Distribution -------------------- 80% | Mutant 19% | Scavenger-Mutant Dominant Class ---------------- Mutant | -10/Materials Scavenger-Mutant | -10/Mines Resources | -11 -10 -10 ----------- Run | Yrd Mat Min Matter Collected 1103 | 408 655 40 Remotely . | . . . Salvage Created 1390 | 213 1031 146 Parts 78 | 14 62 2 Haulers Intercepted 2 | . 2 . Recyclers Shooed 4 | . 4 . Parts Field Recycled . | . . . Retrieved Matter . | . . . Parts Self-Destructed . | . . . Prevented . | . . . Kills | -11 -10 -10 ------- Run | Yrd Mat Min Combat Hostiles Destroyed 19 | . 13 6 Guns 12 | . 12 . Cannons 7 | . 1 6 Classes Destroyed 9 | 3 5 1 Worker 4 | 2 1 1 Builder 1 | . 1 . Tunneler 6 | 5 1 . Hauler 2 | . 2 . Recycler 6 | 1 4 1 Mechanic 1 | . 1 . Watcher 2 | . 2 . Grunt 13 | . 13 . Assembled 6 | . . 6 Best Kill Streak 6 | 6 4 5 Combat Bots Only 4 | . 4 4 Max Kills in Single Turn 2 | 1 2 2 Gunslinging . | . . . Exploded . | . . . Melee . | . . . Uniques/NPCs Destroyed . | . . . Combat | -11 -10 -10 -------- Run | Yrd Mat Min Hostile Shots Fired 111 | . 44 67 Missed 23 | . 9 14 Damage Taken 1203 | . 350 853 Core 252 | . 53 199 Absorbed by Shields . | . . . Ignored by Resistances 359 | . 111 248 Core Remaining (%) 100 | 100 . . Volleys Fired 100 | 19 64 17 Largest 2 | 2 2 2 Hottest 120 | 40 120 120 Shots Fired 200 | 38 128 34 Gun 159 | 38 120 1 Cannon 41 | . 8 33 Launcher . | . . . Special . | . . . Kinetic 160 | 38 120 2 Thermal 40 | . 8 32 Explosive . | . . . Electromagnetic . | . . . Robot Hit Streak 37 | 11 27 37 Robot Miss Streak 3 | 2 3 1 Penetration Max . | . . . Secondary Targets . | . . . Shots Hit Robots 145 | 27 94 24 Core Hits 71 | 11 45 15 Critical Kills 1 | 1 . . Critical Parts Destroyed . | . . . Critical Strikes 1 | 1 . . Destroy 1 | 1 . . Melee Attacks . | . . . Impact . | . . . Slashing . | . . . Piercing . | . . . Sneak Attacks . | . . . Combat Hostiles . | . . . Follow-up Attacks . | . . . Damage Inflicted 1928 | 275 1182 471 Guns 1332 | 275 1057 . Cannons 596 | . 125 471 Explosions . | . . . Melee . | . . . Ramming . | . . . Kinetic 1348 | 275 1057 16 Thermal 580 | . 125 455 Explosive . | . . . Electromagnetic . | . . . Impact . | . . . Slashing . | . . . Piercing . | . . . Highest Corruption . | . . . Average Corruption . | . . . Corruption Purged . | . . . Corruption Blocked . | . . . Overload Shots . | . . . Overflow Damage 17 | . . 17 Projectiles 17 | . . 17 Explosions . | . . . Melee . | . . . Knockbacks . | . . . Impact . | . . . Kinetic . | . . . Secondary . | . . . Self-Inflicted Damage . | . . . Shots . | . . . Rammed . | . . . Targets Rammed . | . . . Kicked . | . . . Crushed . | . . . Highest Temperature 236 | . 72 236 Average Temperature 77 | . 16 125 Received Heat Transfer 324 | . 252 72 Effects 1 | . . 1 Energy Bleed 1 | . . 1 Siege Activations . | . . . Robots Corrupted . | . . . Combat Hostiles . | . . . Parts Fried . | . . . Impact Corruptions . | . . . Robots Melted . | . . . Combat Hostiles . | . . . Parts Melted 2 | . 1 1 Heat Transferred 1221 | . 259 962 Parts Sabotaged . | . . . Parts Stolen . | . . . Parts Stripped . | . . . Power Chain Reactions . | . . . Alert | -11 -10 -10 ------- Run | Yrd Mat Min Peak Influence 240 | 40 240 27 Initial 22 | . 22 22 Average 64 | 20 83 17 Maximum Alert Level 1 | . 1 . Low Security (%) 95 | 100 93 100 Level 1 4 | . 6 . Level 2 . | . . . Level 3 . | . . . Level 4 . | . . . Level 5 . | . . . High Security . | . . . Max Security . | . . . Squads Dispatched 2 | . 2 . Investigation 2 | . 2 . Extermination . | . . . Reinforcement . | . . . Assault . | . . . Garrison . | . . . Intercept . | . . . Searches Triggered . | . . . Construction Impeded . | . . . Haulers Reinforced . | . . . Active Scanning Responses . | . . . Cargo Convoy Interrupts . | . . . Stealth | -11 -10 -10 --------- Run | Yrd Mat Min Distress Signals . | . . . Communications Jammed . | . . . Distress Signals . | . . . Times Spotted 34 | . 22 12 Peak Tracking Total 9 | . 3 9 Tactical Retreats 2 | . 1 1 Traps | -11 -10 -10 ------- Run | Yrd Mat Min Traps Triggered 3 | . 3 . Indirectly . | . . . Trap Hack Attempts . | . . . Triggered . | . . . Disarmed . | . . . Reprogrammed . | . . . Reused . | . . . Traps Extracted . | . . . Installed . | . . . Triggered . | . . . Machines | -11 -10 -10 ---------- Run | Yrd Mat Min Machines Disabled . | . . . Max in Single Turn . | . . . Machines Repaired . | . . . Machines Dismantled . | . . . Machines Sabotaged . | . . . Overloaded Fab Kills . | . . . Hacking | -11 -10 -10 --------- Run | Yrd Mat Min Machines Accessed 8 | . 8 . Terminals 7 | . 7 . Fabricators . | . . . Repair Stations . | . . . Recycling Units 1 | . 1 . Scanalyzers . | . . . Garrison Access . | . . . Total Hacks 34 | . 34 . Successful 18 | . 18 . Failed 16 | . 16 . Catastrophic 1 | . 1 . Database Lockouts . | . . . Manual 25 | . 25 . Terminals 32 | . 32 . Fabricators . | . . . Repair Stations . | . . . Recycling Units 2 | . 2 . Scanalyzers . | . . . Garrison Access . | . . . Terminal Hacks 12 | . 12 . Robot Analysis 3 | . 3 . Branch Access Points 1 | . 1 . Terminal Index 1 | . 1 . Unreport Threat 1 | . 1 . Maintenance Status 1 | . 1 . Registered Components 1 | . 1 . Zone Layout 4 | . 4 . Fabricator Hacks . | . . . Repair Station Hacks . | . . . Recycling Unit Hacks 1 | . 1 . Report Inventory 1 | . 1 . Scanalyzer . | . . . Garrison Access Hacks . | . . . Unauthorized Hacks 5 | . 5 . Terminals 4 | . 4 . Botnet 4 | . 4 . Fabricators . | . . . Repair Stations . | . . . Recycling Units 1 | . 1 . Reject 1 | . 1 . Scanalyzers . | . . . Garrison Access . | . . . Data Cores Recovered . | . . . Used . | . . . Hacking Detections 8 | . 8 . Full Trace Events 5 | . 5 . Feedback Events . | . . . Feedback Blocked . | . . . Robot Schematics Acquired . | . . . Robots Built . | . . . Authchips . | . . . Time . | . . . Total Robot Build Rating . | . . . Part Schematics Acquired . | . . . Parts Built . | . . . Authchips . | . . . Time . | . . . Total Part Build Rating . | . . . Parts Repaired . | . . . Time . | . . . Parts Recycled . | . . . Recycled Matter . | . . . Retrieved Matter . | . . . Retrieved Components . | . . . Parts Scanalyzed . | . . . Part Schematics Acquired . | . . . Parts Damaged . | . . . Bothacking | -11 -10 -10 ------------ Run | Yrd Mat Min Used RIF Installer . | . . . Robots Hacked . | . . . Non-combat . | . . . Combat . | . . . Robot Hacks Applied . | . . . Relay Couplers Released . | . . . Fabnet Peak Effective % . | . . . Robots Rewired . | . . . Allies Hacked . | . . . Hacks Repelled . | . . . Allies | -11 -10 -10 -------- Run | Yrd Mat Min Total Allies 1 | . . 1 Largest Group 1 | . . 1 Highest-Rated Group 31 | . . 31 Highest-Rated Ally 31 | . . 31 Total Orders . | . . . Ally Attacks 10 | . . 10 Total Damage 84 | . . 84 Kills 2 | . . 2 Allies Corrupted . | . . . Allies Melted . | . . . Intel | -11 -10 -10 ------- Run | Yrd Mat Min Robot Analysis Total 3 | . 3 . Derelict Logs Recovered . | . . . Drone Launches . | . . . Drone Recoveries . | . . . Exploration | -11 -10 -10 ------------- Run | Yrd Mat Min Turns Passed 1402 | 172 985 245 Spaces Moved 1002 | 120 687 195 Core 1 | 1 . . Treads . | . . . Legs . | . . . Wheels 1001 | 119 687 195 Hover . | . . . Flight . | . . . Fastest Speed 50 | 50 80 80 Average Speed 85 | 81 84 90 Slowest Speed 95 | 95 95 95 Overloaded Moves . | . . . Propulsion Burnouts . | . . . Robots Hopped . | . . . Cave-ins Triggered . | . . . Exploration Rate (%) 43 | 5 87 38 Regions Visited 2 Branch Regions 1 Pre-discovered Areas . | . . . Known Exits Taken 1 | . 1 . Unknown Exits Taken 1 | 1 . . Scrap Searched 1 | . . 1 Spaces Dug . | . . . Terrain Destroyed . | . . . Melee . | . . . Projectile . | . . . AOE . | . . . Terrain Rammed . | . . . Walls Destroyed . | . . . Machines Disabled . | . . . Actions | -11 -10 -10 --------- Run | Yrd Mat Min Total 1364 | 159 972 233 Wait 170 | . 167 3 Move 1000 | 119 686 195 Hop . | . . . Pick Up 42 | 14 22 6 Fast Attach 1 | . 1 . Attach 21 | 7 8 6 Detach . | . . . Swap 9 | . 7 2 Drop 21 | . 17 4 Fire 100 | 19 64 17 Melee . | . . . Ram . | . . . Kick . | . . . Crush . | . . . Escape Stasis . | . . . Rewire . | . . . Trap . | . . . Miscellaneous . | . . . Route ------- -11/Scrapyard -10/Materials (discovered 4 exits: [*Mat x3] / *Min) -10/Mines History --------- Turn | Location | Event 13 | -11/Scrapyard | Discovered new exit (range 16) 173 | -11/Scrapyard | Entered Materials 243 | -10/Materials | Discovered new exit (range 7) 277 | -10/Materials | Discovered new exit (range 12) 300 | -10/Materials | Build established: Mutant 562 | -10/Materials | Discovered new exit (range 8) 701 | -10/Materials | Discovered new exit (range 10) 889 | -10/Materials | Identified exit to Mines 1158 | -10/Materials | Entered Mines 1203 | -10/Mines | Received a Mining Laser from a helpful Derelict 1298 | -10/Mines | Assembled infested the area 1334 | -10/Mines | Core integrity fell below 50% 1376 | -10/Mines | Core integrity fell below 20% 1396 | -10/Mines | A weapon hastily lodged in a ceiling crevice suddenly fell to the ground 1403 | -10/Mines | Destroyed by D-53 Grenadier with Mini Grenade Launcher Last Messages --------------- 01367_ Acquired 10 matter. 01373_ Plasma Injector explodes. 01376_ Lgt. Nuclear Core destroyed. 01376_ Com. Wheel destroyed. 01378_ U-05 Engineer lays Concrete. 01379_ R-06 Scavenger collects Sml. Storage Unit. 01380_ U-05 Engineer lays Concrete. 01380_ Beam Cannon destroyed. 01381_ U-05 Engineer lays Concrete. 01384_ Imp. Heat Sink destroyed. 01388_ Beamcaster destroyed. 01390_ The unstable cave ceiling collapses. 01396_ A Battle Cannon has been hastily shoved under some rubble with a note attached: "To battle!" 01400_ Acquired Battle Cannon. 01400_ Mining Laser destroyed. 01400_ Wheel destroyed. 01402_ The unstable cave ceiling collapses. Map ----- +----------------------------------------------------+ | | | | | | | | | | | | | | | | | | | | | | | | | | | | | | | | | | | ?????????????????????????????????????????????????? | | ?????????????????????????????????????????????????? | | ?????????????????????????????????????????????????? | | ?????????????????????????#?##????????????????????? | | ?????????????????????#### # ##???????????????????? | | ????????????????????## ###?????????????????? | | ########????????????# # ##????????????????? | | = % #????????????# ##???????????????? | | ###### #????????????# @ #???????????????? | | ?????# #????????????## #???????????????? | | ?????# #?????????????# ##???????????????? | | ?????# #?????????????# dd # #????????????????? | | ?????#!#?????????????####% ##??????????????????? | | ?????#%#??????###???### # ##???????????????????? | | ?????#!#?????## #?## ##???????????????????? | | ?????#[#?????# ## # ##??????????????????? | | ?????#!#?????# #??????????????????? | | ?????# #?????# #??????????????????? | | ?????# #?????# #??????????????????? | | ?????# #?????# ##??????????????????? | | ###### ###???## ##???????????????????? | | #????# ## ????????????????????? | | #???## ## ###???????????????????? | | ####### #??## ### #?????????????????????? | | ??????# #??# #?# #?????????????????????? | | ??????# #??# ## #??? ##???????????????? | | #?????# #??# ## # #???????????????? | | ##????# #### #???????????????? | | ##??## ### #?????????????? | | #### ## %##### #?????????????? | | ## ### ##??? ?????????????????? | | # #####= #??? ? " ????????????????? | | ## ###%%% #??? ?? ?????????????????? | +----------------------------------------------------+ Best States ------------- Heat Dissipation 39 Energy Generation 14 Energy Capacity 250 Matter Stores 300 Matter Capacity 300 Sight Range 16 Terrain Scan Density 10 Resistance: KI 20 Resistance: TH 20 Resistance: EX 20 Resistance: EM 20 Resistance: I 20 Resistance: S 20 Resistance: P 20 Evasion (%) 44 Offensive Hacking 10 Item Schematics ----------------- None Robot Schematics ------------------ None Fabricated ------------ Nothing Alien Tech Used ----------------- None Achievements -------------- None Challenges ------------ None Game ------ Seed QuantumCatalystCloak Manual? 0 Play Time 00:19:47 Cumulative 260.2 hours Start 2024.05.05 @ 11:35:36 End 2024.05.05 @ 11:52:21 Sessions 1 Manual Loads 0 Difficulty Adventurer Special Mode None Game No. 40 Rogue 0 Adventurer 40 Explorer 0 Win Type - Total 2 Types 2/0/0/0/0/0/0/0/0 Lore% 30 Gallery% 67 Achievement% 56 Wizard Run 0 Options --------- Layout 2 ASCII 0 Keyboard 0 Movement Mouse Keybinds 0 Fullscreen 1 Font 24/Smallcaps Map View 50x49 Zoom Use 18% Tactical HUD 1 Map Filters NONE Filters NONE Steam 1 RUN: 76bdf02b-cd3b-4878-bef8-3f7e5271c10d